bitfinex/quotes_SOLUSD_20240712
["timestamp","ask_amount","ask_price","bid_price","bid_amount"]
[1720809002543,17.17,139.37,139.29,7.42689417]
[1720809002741,45.0,139.36,139.32,17.17]
[1720809002958,17.17,139.38,139.32,17.17]
[1720809003167,45.0,139.37,139.33,17.17]
[1720809003631,45.0,139.38,139.33,17.17]
[1720809003837,52.1746,139.38,139.33,17.17]
[1720809004446,45.0,139.38,139.33,17.17]
[1720809005236,52.1746,139.38,139.33,17.17]
[1720809006033,45.0,139.38,139.35,17.17]
[1720809006239,15.1915,139.4,139.36,17.17]
[1720809007058,15.1915,139.4,139.37,17.17]
[1720809007245,7.1727,139.42,139.37,17.17]
[1720809008265,24.3427,139.42,139.37,17.17]
[1720809008441,45.0,139.41,139.37,17.17]
[1720809009063,52.1731,139.41,139.36,17.17]
[1720809009356,24.3436,139.4,139.35,17.17]
[1720809009555,45.0,139.39,139.35,17.17]
[1720809010758,45.0,139.39,139.29,7.5035409]
[1720809010949,45.0,139.39,139.35,17.17]
[1720809011354,17.17,139.41,139.35,17.17]
[1720809011545,45.0,139.4,139.35,17.17]
[1720809011863,17.17,139.41,139.36,17.17]
[1720809012165,24.3431,139.41,139.36,17.17]
[1720809012464,17.17,139.4,139.35,17.17]
[1720809013044,45.0,139.39,139.35,17.17]
[1720809014750,15.506,139.43,139.36,17.17]
[1720809014980,62.17,139.42,139.37,17.17]
[1720809015856,15.506,139.43,139.38,17.17]
[1720809016171,15.506,139.43,139.33,22.7793]
[1720809016172,15.506,139.43,139.39,17.17]
[1720809016769,32.676,139.43,139.38,17.17]
[1720809016968,39.848,139.43,139.38,17.17]
[1720809017367,17.17,139.41,139.33,22.7793]
[1720809017676,45.0,139.4,139.36,17.17]
[1720809018181,15.506,139.43,139.38,17.17]
[1720809018361,45.0,139.42,139.38,17.17]
[1720809020087,62.17,139.42,139.36,17.17]
[1720809020261,69.3426,139.42,139.36,17.17]
[1720809020467,62.17,139.42,139.36,17.17]
[1720809020961,69.3427,139.42,139.36,17.17]
[1720809021163,62.17,139.42,139.36,17.17]
[1720809021362,69.3426,139.42,139.36,17.17]
[1720809021600,62.17,139.42,139.36,17.17]
[1720809021786,45.0,139.42,139.36,17.17]
[1720809021975,62.17,139.42,139.36,17.17]
[1720809022561,62.17,139.42,139.37,17.17]
[1720809023285,45.0,139.42,139.37,17.17]
[1720809023681,45.0,139.42,139.38,17.17]
[1720809027981,45.0,139.42,139.34,20.0]
[1720809028175,45.0,139.42,139.37,17.17]
[1720809029097,45.0,139.42,139.34,20.0]
[1720809029587,62.17,139.42,139.36,17.17]
[1720809030473,62.17,139.42,139.37,17.17]
[1720809030671,62.17,139.42,139.34,20.0]
[1720809030875,62.17,139.42,139.37,17.17]
[1720809031072,45.0,139.42,139.37,17.17]
[1720809032285,45.0,139.42,139.38,17.17]
[1720809032774,45.0,139.42,139.37,17.17]
[1720809033402,62.17,139.42,139.37,17.17]
[1720809034494,45.0,139.42,139.37,17.17]
[1720809040996,45.0,139.42,139.38,17.17]
[1720809043695,45.0,139.42,139.34,20.0]
[1720809043898,62.17,139.42,139.37,17.17]
[1720809044157,24.3433,139.41,139.31,2.87197024]
[1720809044293,69.3436,139.4,139.34,17.17]
[1720809044610,45.0,139.39,139.34,17.17]
[1720809046499,45.0,139.39,139.35,17.17]
[1720809047913,6.4554,139.4,139.35,17.17]
[1720809048711,6.4554,139.4,139.31,7.48597599]
[1720809048908,45.0,139.39,139.35,17.17]
[1720809049108,6.4554,139.4,139.35,17.17]
[1720809049502,45.0,139.39,139.35,17.17]
[1720809055424,45.0,139.39,139.36,17.17]
[1720809056522,45.0,139.39,139.35,17.17]
[1720809059034,17.17,139.36,139.31,7.48597599]
[1720809059346,17.17,139.35,139.27,7.01642142]
[1720809059507,17.17,139.35,139.3,17.17]
[1720809059712,22.5937,139.38,139.31,17.17]
[1720809059928,62.17,139.37,139.31,17.17]
[1720809060238,62.17,139.37,139.32,17.17]
[1720809061109,45.0,139.37,139.32,17.17]
[1720809061313,45.0,139.37,139.34,17.17]
[1720809061525,15.4189,139.38,139.35,17.17]
[1720809062107,15.4189,139.38,139.34,17.17]
[1720809063017,39.7635,139.38,139.33,17.17]
[1720809063225,7.1752,139.37,139.28,68.68]
[1720809063432,45.0,139.36,139.31,17.17]
[1720809063630,45.0,139.36,139.29,20.0]
[1720809063835,62.17,139.36,139.31,17.17]
[1720809064012,39.7635,139.38,139.32,17.17]
[1720809064209,45.0,139.37,139.33,17.17]
[1720809064818,45.0,139.37,139.29,20.0]
[1720809065013,62.17,139.37,139.32,17.17]
[1720809065220,62.17,139.37,139.31,17.17]
[1720809065427,69.3455,139.37,139.31,17.17]
[1720809065738,62.17,139.37,139.31,17.17]
[1720809065916,62.17,139.37,139.32,17.17]
[1720809066116,45.0,139.37,139.32,17.17]
[1720809066915,45.0,139.37,139.34,17.17]
[1720809067233,15.4189,139.38,139.35,17.17]
[1720809067436,6.4554,139.4,139.35,17.17]
[1720809067628,6.4554,139.4,139.36,17.17]
[1720809067810,6.4554,139.4,139.35,17.17]
[1720809069235,17.17,139.38,139.28,22.5623]
[1720809069447,17.17,139.38,139.33,17.17]
[1720809069837,45.0,139.37,139.33,17.17]
[1720809070037,7.1744,139.39,139.33,17.17]
[1720809070237,17.17,139.38,139.33,17.17]
[1720809070546,45.0,139.37,139.33,17.17]
[1720809071240,13.6292,139.4,139.33,17.17]
[1720809071444,45.0,139.39,139.35,17.17]
[1720809071641,6.4554,139.4,139.35,17.17]
[1720809072017,32.5191,139.42,139.36,17.17]
[1720809072216,15.3491,139.42,139.32,10.0]
[1720809072446,15.3491,139.42,139.39,17.17]
[1720809072748,39.4387,139.46,139.41,17.17]
[1720809073646,7.1711,139.45,139.41,17.17]
[1720809073848,45.0,139.44,139.41,17.17]
[1720809074720,22.2688,139.46,139.41,17.17]
[1720809074922,39.4388,139.46,139.36,17.17]
[1720809075134,39.4388,139.46,139.37,20.0]
[1720809075340,7.1711,139.45,139.37,20.0]
[1720809076240,45.0,139.44,139.37,20.0]
[1720809077533,52.1715,139.44,139.37,20.0]
[1720809077725,52.1715,139.44,139.39,17.17]
[1720809078526,45.0,139.44,139.39,17.17]
[1720809079833,45.0,139.44,139.35,20.0]
[1720809079834,62.17,139.44,139.35,20.0]
[1720809080159,17.17,139.43,139.38,17.17]
[1720809081048,17.17,139.43,139.35,20.0]
[1720809081228,17.17,139.43,139.38,17.17]
[1720809081562,7.1725,139.42,139.34,22.1123]
[1720809081737,62.17,139.41,139.35,17.17]
[1720809082050,78.0503,139.41,139.35,17.17]
[1720809082259,78.0503,139.41,139.36,17.17]
[1720809082420,78.0503,139.41,139.37,17.17]
[1720809082421,15.8803,139.41,139.37,17.17]
[1720809082621,15.8803,139.41,139.38,17.17]
[1720809083061,15.8803,139.41,139.37,17.17]
[1720809084958,15.8803,139.41,139.38,17.17]
[1720809086676,33.0503,139.41,139.31,649.11510885]
[1720809086832,33.0503,139.41,139.35,17.17]
[1720809086833,45.0,139.4,139.35,17.17]
[1720809087463,45.0,139.4,139.36,17.17]
[1720809088040,15.8803,139.41,139.31,646.2]
[1720809088240,15.8803,139.41,139.37,17.17]
[1720809091360,15.8803,139.41,139.36,17.17]
[1720809091664,45.0,139.4,139.36,17.17]
[1720809093481,45.0,139.4,139.35,17.17]
[1720809094651,45.0,139.4,139.36,17.17]
[1720809097756,45.0,139.4,139.37,17.17]
[1720809101968,15.8803,139.41,139.38,17.17]
[1720809105392,7.1717,139.44,139.39,17.17]
[1720809105566,45.0,139.43,139.39,17.17]
[1720809105965,52.1721,139.43,139.39,17.17]
[1720809108190,7.1727,139.42,139.39,17.17]
[1720809108388,7.1733,139.41,139.39,17.17]
[1720809108689,7.1733,139.41,139.36,17.17]
[1720809108690,24.3433,139.41,139.36,17.17]
[1720809108871,7.1737,139.4,139.33,7.49597164]
[1720809109068,32.7826,139.4,139.35,17.17]
[1720809110399,22.0297,139.4,139.33,7.49597164]
[1720809110571,24.3454,139.37,139.33,7.49597164]
[1720809110901,45.0,139.36,139.31,17.17]
[1720809111196,17.17,139.37,139.31,17.17]
[1720809111407,45.0,139.36,139.31,17.17]
[1720809111732,45.0,139.36,139.32,17.17]
[1720809112689,45.0,139.37,139.33,17.17]
[1720809114490,22.0297,139.4,139.34,17.17]
[1720809114682,39.1997,139.4,139.35,17.17]
[1720809115801,46.3733,139.4,139.35,17.17]
[1720809116100,62.17,139.39,139.34,17.17]
[1720809117580,45.0,139.39,139.34,17.17]
[1720809118502,17.17,139.38,139.29,7.49844915]
[1720809118707,45.0,139.37,139.33,17.17]
[1720809119204,17.17,139.39,139.34,17.17]
[1720809120084,46.3734,139.4,139.34,17.17]
[1720809120409,45.0,139.39,139.34,17.17]
[1720809121122,62.17,139.39,139.34,17.17]
[1720809121287,69.3444,139.39,139.29,7.49765338]
[1720809121486,17.17,139.38,139.33,17.17]
[1720809121724,45.0,139.37,139.33,17.17]
[1720809122021,69.3444,139.39,139.33,17.17]
[1720809123718,45.0,139.39,139.34,17.17]
[1720809124016,45.0,139.39,139.35,17.17]
[1720809125517,24.3446,139.38,139.33,17.17]
[1720809125716,45.0,139.37,139.33,17.17]
[1720809126106,45.0,139.38,139.33,17.17]
[1720809126622,45.0,139.38,139.34,17.17]
[1720809129601,45.0,139.38,139.33,17.17]
[1720809132824,52.1746,139.38,139.33,17.17]
[1720809133029,45.0,139.38,139.33,17.17]
[1720809133206,45.0,139.38,139.34,17.17]
[1720809133412,45.0,139.39,139.34,17.17]
[1720809133605,45.0,139.39,139.35,17.17]
[1720809134300,45.0,139.39,139.34,17.17]
[1720809134504,52.1741,139.39,139.34,17.17]
[1720809134712,69.3441,139.39,139.33,17.17]
[1720809135028,7.1755,139.37,139.31,7.49604241]
[1720809135232,45.0,139.36,139.32,17.17]
[1720809135717,24.3447,139.38,139.32,17.17]
[1720809135931,45.0,139.37,139.32,17.17]
[1720809136924,69.3452,139.37,139.3,20.0]
[1720809137126,69.3452,139.37,139.31,17.17]
[1720809137307,69.3452,139.37,139.3,20.0]
[1720809137627,69.3452,139.37,139.31,17.17]
[1720809137932,45.0,139.37,139.3,20.0]
[1720809138140,45.0,139.38,139.3,20.0]
[1720809138311,45.0,139.38,139.34,17.17]
[1720809138822,45.0,139.39,139.34,17.17]
[1720809142432,52.1741,139.39,139.34,17.17]
[1720809143229,69.3441,139.39,139.34,17.17]
[1720809144325,69.3441,139.39,139.33,17.17]
[1720809145535,62.17,139.39,139.33,17.17]
[1720809145739,45.0,139.39,139.34,17.17]
[1720809145953,21.8861,139.44,139.36,17.17]
[1720809146238,29.0577,139.44,139.39,17.17]
[1720809146443,15.4414,139.44,139.4,17.17]
[1720809148058,32.6114,139.44,139.39,17.17]
[1720809148338,39.7831,139.44,139.39,17.17]
[1720809148518,24.3422,139.43,139.38,17.17]
[1720809148716,17.17,139.42,139.37,17.17]
[1720809150539,45.0,139.41,139.32,6.3029]
[1720809150739,62.17,139.41,139.36,17.17]
[1720809151817,62.17,139.41,139.32,6.3029]
[1720809152016,62.17,139.41,139.36,17.17]
[1720809154415,17.17,139.41,139.36,17.17]
[1720809154643,17.17,139.43,139.38,17.17]
[1720809154828,45.0,139.42,139.38,17.17]
[1720809155159,62.17,139.42,139.37,17.17]
[1720809157347,45.0,139.42,139.38,17.17]
[1720809158851,15.4414,139.44,139.38,17.17]
[1720809159029,45.0,139.43,139.39,17.17]
[1720809160157,62.17,139.43,139.38,17.17]
[1720809160347,45.0,139.43,139.39,17.17]
[1720809161463,45.0,139.43,139.38,17.17]
[1720809161464,62.17,139.43,139.38,17.17]
[1720809162461,69.3421,139.43,139.38,17.17]
[1720809163047,62.17,139.43,139.33,20.0]
[1720809163249,62.17,139.43,139.38,17.17]
[1720809166856,45.0,139.43,139.38,17.17]
[1720809168540,69.342,139.43,139.33,27.48905643]
[1720809168741,69.342,139.43,139.37,17.17]
[1720809169158,62.17,139.43,139.38,17.17]
[1720809169458,45.0,139.43,139.38,17.17]
[1720809169659,45.0,139.43,139.39,17.17]
[1720809170036,45.0,139.43,139.38,17.17]
[1720809170430,45.0,139.43,139.33,27.48905643]
[1720809170431,15.4414,139.44,139.41,17.17]
[1720809170642,15.4414,139.44,139.42,17.17]
[1720809171243,21.4523,139.47,139.42,17.17]
[1720809171642,15.0076,139.51,139.42,17.17]
[1720809171966,15.0076,139.51,139.41,15.021]
[1720809172147,15.0076,139.51,139.47,17.17]
[1720809173250,15.0076,139.51,139.42,6.0828]
[1720809173440,15.0076,139.51,139.46,17.17]
[1720809173843,32.1776,139.51,139.46,17.17]
[1720809174448,15.0076,139.51,139.46,17.17]
[1720809174669,45.0,139.5,139.46,17.17]
[1720809176055,45.0,139.5,139.43,20.0]
[1720809176260,45.0,139.5,139.45,17.17]
[1720809176446,45.0,139.5,139.46,17.17]
[1720809176855,45.0,139.5,139.47,17.17]
[1720809177059,45.0,139.5,139.42,6.0828]
[1720809177360,45.0,139.5,139.46,17.17]
[1720809178363,0.8729582,139.54,139.49,17.17]
[1720809178579,0.8729582,139.54,139.51,17.17]
[1720809178755,0.8729582,139.54,139.52,17.17]
[1720809179445,0.8729582,139.54,139.53,17.17]
[1720809180857,0.8729582,139.54,139.48,6.3239]
[1720809181064,0.8729582,139.54,139.51,17.17]
[1720809183459,0.8729582,139.54,139.49,20.0]
[1720809183772,0.8729582,139.54,139.53,17.17]
[1720809185748,0.8729582,139.54,139.53,37.17]
[1720809189370,219.65140098,139.61,139.53,37.17]
[1720809189680,219.65140098,139.61,139.58,17.17]
[1720809190358,219.65140098,139.61,139.57,17.17]
[1720809191784,219.65140098,139.61,139.58,17.17]
[1720809192776,219.65140098,139.61,139.54,20.0]
[1720809192981,236.82140098,139.61,139.53,20.0]
[1720809193188,45.0,139.6,139.56,17.17]
[1720809193486,236.82140098,139.61,139.56,17.17]
[1720809193859,236.82140098,139.61,139.53,20.0]
[1720809193860,24.3333,139.6,139.53,20.0]
[1720809194075,24.3333,139.6,139.55,17.17]
[1720809194270,17.17,139.6,139.55,17.17]
[1720809194567,45.0,139.59,139.55,17.17]
[1720809194892,32.6185,139.57,139.49,15.3838]
[1720809195059,32.6185,139.57,139.52,17.17]
[1720809195262,15.4485,139.57,139.54,17.17]
[1720809196780,15.4485,139.57,139.49,15.3838]
[1720809197074,15.4485,139.57,139.53,17.17]
[1720809198664,15.4485,139.57,139.54,17.17]
[1720809199564,30.0,139.56,139.54,17.17]
[1720809201871,45.0,139.59,139.55,17.17]
[1720809202868,45.0,139.59,139.56,17.17]
[1720809204382,15.5223,139.6,139.56,17.17]
[1720809204992,15.5223,139.6,139.52,17.17]
[1720809205173,15.5223,139.6,139.57,17.17]
[1720809205490,219.65140098,139.61,139.59,17.17]
[1720809205685,219.65140098,139.61,139.6,17.17]
[1720809208076,219.65140098,139.61,139.6,34.34]
[1720809208285,219.65140098,139.61,139.6,54.34]
[1720809212700,219.65140098,139.61,139.6,37.17]
[1720809213896,206.9386722,139.61,139.6,54.34]
[1720809215577,206.9386722,139.61,139.6,20.0]
[1720809215881,206.9386722,139.61,139.6,17.17]
[1720809216082,206.9386722,139.61,139.6,37.17]
[1720809217906,206.9386722,139.61,139.6,54.34]
[1720809219621,206.9386722,139.61,139.6,150.85]
[1720809219803,54.9686722,139.61,139.6,150.85]
[1720809224707,20.88328591,139.61,139.6,150.85]
[1720809224926,0.8729582,139.68,139.62,7.194]
[1720809225110,0.8729582,139.68,139.63,65.0]
[1720809225316,0.8729582,139.68,139.67,17.17]
[1720809229523,0.8729582,139.68,139.67,37.17]
[1720809229927,0.8729582,139.68,139.67,20.0]
[1720809230164,0.8729582,139.68,139.67,17.17]
[1720809230355,0.8729582,139.68,139.67,37.17]
[1720809232321,0.8729582,139.68,139.67,17.17]
[1720809232520,0.8729582,139.68,139.67,37.17]
[1720809234127,0.8729582,139.68,139.67,20.0]
[1720809234327,0.8729582,139.68,139.67,17.17]
[1720809234627,0.8729582,139.68,139.67,20.0]
[1720809235348,0.8729582,139.68,139.67,17.17]
[1720809235641,0.8729582,139.68,139.67,37.17]
[1720809235847,0.8729582,139.68,139.67,20.0]
[1720809239457,0.8729582,139.68,139.67,17.17]
[1720809239635,0.8729582,139.68,139.67,37.17]
[1720809240344,0.8729582,139.68,139.67,20.0]
[1720809241044,0.8729582,139.68,139.67,37.17]
[1720809242254,0.8729582,139.68,139.62,7.47927123]
[1720809242438,0.8729582,139.68,139.65,17.17]
[1720809242944,0.8729582,139.68,139.67,17.17]
[1720809244161,0.8729582,139.68,139.67,37.17]
[1720809244956,0.8729582,139.68,139.67,17.17]
[1720809245160,0.8729582,139.68,139.67,37.17]
[1720809245656,0.8729582,139.68,139.67,20.0]
[1720809245956,0.8729582,139.68,139.65,17.17]
[1720809246158,0.8729582,139.68,139.66,20.0]
[1720809246343,0.8729582,139.68,139.66,37.17]
[1720809247255,0.8729582,139.68,139.66,17.17]
[1720809249461,0.8729582,139.68,139.67,17.17]
[1720809252849,0.8729582,139.68,139.63,7.48200225]
[1720809253048,0.8729582,139.68,139.65,17.17]
[1720809253250,0.8729582,139.68,139.66,20.0]
[1720809253477,0.8729582,139.68,139.65,17.17]
[1720809253643,0.8729582,139.68,139.66,20.0]
[1720809255543,0.8729582,139.68,139.63,7.48200225]
[1720809255743,16.7476582,139.68,139.64,37.17]
[1720809256064,16.7476582,139.68,139.64,20.0]
[1720809256261,16.7476582,139.68,139.64,37.17]
[1720809256561,16.7476582,139.68,139.64,20.0]
[1720809256749,16.7476582,139.68,139.63,7.48200225]
[1720809256948,17.17,139.66,139.61,17.17]
[1720809257258,16.7476582,139.68,139.61,17.17]
[1720809257564,17.17,139.67,139.62,17.17]
[1720809257866,16.7476582,139.68,139.63,17.17]
[1720809257867,33.9176582,139.68,139.63,17.17]
[1720809259651,16.7476582,139.68,139.66,17.17]
[1720809260450,0.8729582,139.68,139.67,17.17]
[1720809262473,0.8729582,139.68,139.62,22.6775]
[1720809262653,0.8729582,139.68,139.65,17.17]
[1720809262850,0.8729582,139.68,139.66,20.0]
[1720809264769,0.8729582,139.68,139.66,37.17]
[1720809265764,0.8729582,139.68,139.67,17.17]
[1720809266179,0.8729582,139.68,139.67,37.17]
[1720809270395,15.9878,139.74,139.67,82.17]
[1720809270682,15.9878,139.74,139.71,17.17]
[1720809271891,17.17,139.76,139.71,17.17]
[1720809272074,17.37,139.79,139.72,20.0]
[1720809272388,17.37,139.79,139.74,17.17]
[1720809272755,0.2,139.79,139.73,17.17]
[1720809272953,17.17,139.78,139.73,17.17]
[1720809275375,17.17,139.77,139.72,37.17]
[1720809275773,17.17,139.78,139.72,20.0]
[1720809276097,0.2,139.79,139.75,17.17]
[1720809276392,0.2,139.79,139.69,20.0]
[1720809276683,0.2,139.79,139.74,17.17]
[1720809277068,17.37,139.79,139.74,17.17]
[1720809277263,17.37,139.79,139.7,45.0]
[1720809277479,17.37,139.79,139.74,17.17]
[1720809278082,17.37,139.79,139.75,17.17]
[1720809278083,0.2,139.79,139.75,17.17]
[1720809279179,0.2,139.79,139.71,20.0]
[1720809279383,17.37,139.79,139.74,17.17]
[1720809280096,0.2,139.79,139.74,17.17]
[1720809281482,0.2,139.79,139.75,17.17]
[1720809282283,0.2,139.79,139.78,17.17]
[1720809282593,0.2,139.79,139.78,82.17]
[1720809282964,0.2,139.79,139.78,20.0]
[1720809283373,0.2,139.79,139.78,17.17]
[1720809283688,0.2,139.79,139.78,37.17]
[1720809284469,0.2,139.79,139.78,82.17]
[1720809286571,0.2,139.79,139.78,37.17]
[1720809287895,0.2,139.79,139.78,82.17]
[1720809288212,0.2,139.79,139.78,65.0]
[1720809288421,0.2,139.79,139.78,20.0]
[1720809288720,0.2,139.79,139.78,17.17]
[1720809288889,0.2,139.79,139.78,37.17]
[1720809289088,0.2,139.79,139.78,20.0]
[1720809289287,0.2,139.79,139.78,37.17]
[1720809289792,0.2,139.79,139.78,20.0]
[1720809290095,0.2,139.79,139.71,10.0]
[1720809290297,0.2,139.79,139.75,17.17]
[1720809290496,0.2,139.79,139.74,17.17]
[1720809290909,0.2,139.79,139.75,17.17]
[1720809291891,0.2,139.79,139.71,10.0]
[1720809291892,0.2,139.79,139.76,17.17]
[1720809292112,0.2,139.79,139.75,17.17]
[1720809292926,0.2,139.79,139.76,1.30943082]
[1720809293446,0.2,139.79,139.75,17.17]
[1720809294919,0.2,139.79,139.7,10.31143677]
[1720809295118,0.2,139.79,139.75,17.17]
[1720809295620,0.2,139.79,139.76,17.17]
[1720809296430,0.2,139.79,139.75,17.17]
[1720809296818,0.2,139.79,139.76,1.43044087]
[1720809297019,0.2,139.79,139.75,17.17]
[1720809297515,17.37,139.79,139.7,17.50543677]
[1720809297830,17.37,139.79,139.71,20.0]
[1720809298046,17.17,139.78,139.7,10.31143677]
[1720809298214,17.17,139.78,139.72,17.17]
[1720809298415,17.17,139.77,139.72,17.17]
[1720809299920,0.2,139.79,139.72,17.17]
[1720809299921,17.17,139.78,139.72,17.17]
[1720809300441,17.17,139.78,139.73,17.17]
[1720809300751,17.17,139.77,139.72,17.17]
[1720809301549,17.17,139.77,139.72,20.0]
[1720809301715,17.17,139.76,139.72,20.0]
[1720809302657,0.2,139.79,139.73,0.9742443]
[1720809302817,17.17,139.78,139.73,0.9742443]
[1720809303443,17.17,139.78,139.72,37.17]
[1720809303752,17.17,139.78,139.73,1.43020826]
[1720809304049,17.17,139.78,139.71,20.0]
[1720809304843,17.17,139.77,139.71,37.17]
[1720809305037,17.17,139.76,139.71,37.17]
[1720809306150,17.17,139.76,139.71,20.0]
[1720809306323,17.17,139.76,139.71,37.17]
[1720809307042,22.7092,139.75,139.7,7.48343706]
[1720809307242,17.17,139.73,139.7,7.48343706]
[1720809307443,17.17,139.71,139.63,17.17]
[1720809307661,17.17,139.7,139.65,17.17]
[1720809307856,17.17,139.71,139.65,24.65522038]
[1720809308030,17.17,139.73,139.68,17.17]
[1720809308235,17.17,139.72,139.67,17.17]
[1720809308431,17.17,139.71,139.66,17.17]
[1720809308663,17.17,139.7,139.65,24.65522038]
[1720809309864,17.17,139.7,139.66,20.0]
[1720809311845,17.17,139.7,139.65,7.48522038]
[1720809312054,17.17,139.7,139.66,20.0]
[1720809312455,17.17,139.71,139.66,426.67]
[1720809313466,7.1563,139.74,139.66,426.67]
[1720809313467,17.17,139.72,139.66,426.67]
[1720809314246,17.17,139.71,139.66,426.67]
[1720809314836,7.1562,139.74,139.67,17.17]
[1720809315042,17.17,139.73,139.68,17.17]
[1720809315348,7.1562,139.74,139.68,17.17]
[1720809315349,17.17,139.74,139.68,17.17]
[1720809315550,22.7092,139.75,139.68,17.17]
[1720809315757,17.17,139.74,139.69,17.17]
[1720809317070,17.17,139.74,139.66,409.5]
[1720809317071,15.4626,139.78,139.73,17.17]
[1720809318843,7.1546,139.77,139.7,20.0]
[1720809319071,15.4626,139.78,139.68,7.47950324]
[1720809319242,17.17,139.71,139.68,7.47950324]
[1720809319448,17.17,139.71,139.66,406.67]
[1720809319752,17.17,139.71,139.66,414.15016739]
[1720809320245,17.17,139.72,139.67,17.17]
[1720809320635,21.7616,139.73,139.66,396.98016739]
[1720809320861,21.7616,139.73,139.67,20.0]
[1720809321175,22.2786,139.76,139.67,20.0]
[1720809321364,45.0,139.75,139.67,20.0]
[1720809321867,52.1558,139.75,139.67,20.0]
[1720809322553,7.1561,139.74,139.67,20.0]
[1720809323069,52.1557,139.75,139.67,20.0]
[1720809323871,7.1561,139.74,139.67,20.0]
[1720809324271,15.1235,139.76,139.67,20.0]
[1720809325057,22.2786,139.76,139.67,20.0]
[1720809325460,15.1235,139.76,139.67,20.0]
[1720809326063,15.1235,139.76,139.68,23.2333]
[1720809327258,13.4775,139.78,139.68,23.2333]
[1720809327461,16.0866,139.79,139.69,20.0]
[1720809327671,0.6332,139.79,139.69,65.0]
[1720809327876,0.6332,139.79,139.69,75.0]
[1720809331370,0.6332,139.79,139.71,44.29]
[1720809331575,0.6332,139.79,139.72,65.0]
[1720809331758,0.6332,139.79,139.73,10.0]
[1720809332083,0.6332,139.79,139.74,65.0]
[1720809332874,0.6332,139.79,139.75,22.9512]
[1720809333052,0.6332,139.79,139.76,20.0]
[1720809336452,0.6332,139.79,139.73,20.0]
[1720809337970,0.6332,139.79,139.74,79.29]
[1720809338282,0.6332,139.79,139.76,22.7689]
[1720809338463,0.6332,139.79,139.77,20.0]
[1720809339384,0.6332,139.79,139.74,45.0]
[1720809339566,0.6332,139.79,139.72,22.9963]
[1720809341073,0.6332,139.79,139.73,20.0]
[1720809342485,0.6332,139.79,139.74,1.43079258]
[1720809342796,0.6332,139.79,139.73,20.0]
[1720809343695,0.6332,139.79,139.69,29.94218875]